bitfinex/quotes_BTCUSD_20260103
["timestamp","ask_amount","ask_price","bid_price","bid_amount"]
[1767482916193,0.01104093,90572.0,90569.0,0.0110413]
[1767482916398,0.01104093,90572.0,90568.0,0.0580432]
[1767482916726,0.01104093,90572.0,90569.0,0.0110413]
[1767482917214,0.01104081,90573.0,90569.0,0.0110413]
[1767482917923,0.01104081,90573.0,90570.0,0.01104118]
[1767482918267,0.04980672,90572.0,90569.0,0.02728854]
[1767482918612,0.04980672,90572.0,90568.0,0.06624818]
[1767482918613,0.01104081,90573.0,90568.0,0.05520676]
[1767482919034,0.01104081,90573.0,90570.0,0.01104118]
[1767482919723,0.0001498,90603.0,90574.0,0.05520303]
[1767482919724,0.01104008,90579.0,90574.0,0.05520303]
[1767482919922,0.01095157,90579.0,90575.0,0.01104057]
[1767482920102,0.01095157,90579.0,90576.0,0.01104045]
[1767482920531,0.06624025,90580.0,90575.0,0.01104057]
[1767482920915,0.01104008,90579.0,90575.0,0.01104057]
[1767482921703,0.01103996,90580.0,90576.0,0.01104045]
[1767482922657,0.01103996,90580.0,90576.0,0.05804223]
[1767482924857,0.01095144,90580.0,90576.0,0.05804223]
[1767482926899,0.01104008,90579.0,90576.0,0.04700178]
[1767482927052,0.01099272,90579.0,90576.0,0.04700178]
[1767482927615,0.01099272,90579.0,90576.0,0.04710904]
[1767482930103,0.06619368,90579.0,90576.0,0.04710904]
[1767482930634,0.06610515,90579.0,90576.0,0.04710904]
[1767482930950,0.06610515,90579.0,90576.0,0.04611004]
[1767482931691,0.06597527,90579.0,90576.0,0.04611004]
[1767482931875,0.0110402,90578.0,90575.0,0.01014883]
[1767482934251,0.0110402,90578.0,90576.0,0.04700178]
[1767482934428,0.0110402,90578.0,90575.0,0.01014883]
[1767482935192,0.0110402,90578.0,90575.0,0.05715061]
[1767482935713,0.01103959,90583.0,90573.0,0.01104081]
[1767482935714,0.02208,90585.0,90580.0,0.04700178]
[1767482935908,0.01623696,90584.0,90582.0,0.04700178]
[1767482936112,0.01103959,90583.0,90580.0,0.01103996]
[1767482936458,0.01103959,90583.0,90579.0,0.06624002]
[1767482936901,0.01095105,90583.0,90579.0,0.06624002]
[1767482937108,0.00995205,90583.0,90579.0,0.06624002]
[1767482937609,0.00995205,90583.0,90579.0,0.1132418]
[1767482937819,0.05519551,90588.0,90585.0,0.04700178]
[1767482938134,0.000999,90585.0,90583.0,0.04700178]
[1767482938300,0.05519551,90588.0,90581.0,0.05519921]
[1767482938504,0.05519551,90588.0,90582.0,0.05519807]
[1767482938900,0.01095057,90587.0,90583.0,0.01103959]
[1767482939228,0.01082058,90587.0,90583.0,0.01103959]
[1767482940440,0.000999,90583.0,90582.0,0.05851251]
[1767482940623,0.000999,90583.0,90582.0,0.04747279]
[1767482940963,0.01103935,90585.0,90582.0,0.05851251]
[1767482941107,0.01097032,90585.0,90582.0,0.05851251]
[1767482942500,0.01097032,90585.0,90582.0,0.04747279]
[1767482942674,0.01097032,90585.0,90582.0,0.04647379]
[1767482943111,0.05519469,90589.0,90580.0,0.06623973]
[1767482943112,0.01103886,90589.0,90587.0,0.04747279]
[1767482943322,0.06623392,90588.0,90585.0,0.000999]
[1767482943823,0.01103923,90586.0,90583.0,0.01103959]
[1767482944835,0.01103923,90586.0,90582.0,0.01103972]
[1767482945225,0.01103923,90586.0,90583.0,0.01103959]
[1767482946005,0.01103923,90586.0,90582.0,0.01103972]
[1767482946410,0.01103923,90586.0,90582.0,0.01099431]
[1767482947014,0.01103935,90585.0,90580.0,0.05851275]
[1767482947217,0.01103947,90584.0,90580.0,0.05851275]
[1767482948327,0.01097044,90584.0,90580.0,0.05851275]
[1767482949360,0.01103959,90583.0,90580.0,0.05851275]
[1767482949719,0.01103959,90583.0,90580.0,0.04747279]
[1767482950337,0.01103959,90583.0,90580.0,0.05851275]
[1767482950975,0.01097044,90584.0,90580.0,0.05851275]
[1767482952840,0.01103959,90583.0,90579.0,0.01104008]
[1767482955183,0.01103911,90587.0,90582.0,0.01103972]
[1767482955386,0.01103923,90586.0,90582.0,0.01099431]
[1767482955722,0.06623612,90585.0,90581.0,0.01103984]
[1767482956308,0.06623612,90585.0,90581.0,0.05851263]
[1767482956508,0.01103935,90585.0,90581.0,0.05851263]
[1767482956929,0.01103935,90585.0,90581.0,0.05836912]
[1767482961658,0.01103947,90584.0,90581.0,0.05836912]
[1767482962085,0.01103947,90584.0,90581.0,0.04742738]
[1767482962296,0.01103898,90588.0,90584.0,0.01203847]
[1767482962432,0.01103947,90584.0,90579.0,0.0662401]
[1767482962624,0.051085,90583.0,90579.0,0.02619469]
[1767482962817,0.01103959,90583.0,90579.0,0.02619469]
[1767482963771,0.01103947,90584.0,90580.0,0.01103996]
[1767482964072,0.06623539,90586.0,90581.0,0.01103984]
[1767482964999,0.01103935,90585.0,90581.0,0.01103984]
[1767482965203,0.01103923,90586.0,90582.0,0.01103972]
[1767482966953,0.01103923,90586.0,90582.0,0.0584671]
[1767482967890,0.01103935,90585.0,90582.0,0.0584671]
[1767482968492,0.01103935,90585.0,90582.0,0.04747279]
[1767482968790,0.01103935,90585.0,90582.0,0.04647379]
[1767482969848,0.06623656,90585.0,90582.0,0.04647379]
[1767482970048,0.05519792,90584.0,90582.0,0.03647379]
[1767482971802,0.05519792,90584.0,90582.0,0.0340757]
[1767482972698,0.06623656,90585.0,90582.0,0.0340757]
[1767482973205,0.06623656,90585.0,90582.0,0.03403029]
[1767482973494,0.01103923,90586.0,90585.0,0.000999]
[1767482973849,0.01103923,90586.0,90583.0,0.05804948]
[1767482975902,0.01103923,90586.0,90583.0,0.05790597]
[1767482976311,0.01103923,90586.0,90583.0,0.04686638]
[1767482976816,0.01103923,90586.0,90583.0,0.05790597]
[1767482977361,0.01103923,90586.0,90583.0,0.01103959]
[1767482977958,0.01103935,90585.0,90581.0,0.01103984]
[1767482978228,0.01103935,90585.0,90581.0,0.06623868]
[1767482978388,0.01103935,90585.0,90582.0,0.01103972]
[1767482978593,0.01103923,90586.0,90582.0,0.01103972]
[1767482979798,0.01103923,90586.0,90583.0,0.01099418]
[1767482981158,0.01103911,90587.0,90584.0,0.01103947]
[1767482981966,0.01103923,90586.0,90583.0,0.04700989]
[1767482982498,0.06623592,90586.0,90583.0,0.04700989]
[1767482982932,0.06623592,90586.0,90583.0,0.04696564]
[1767482983137,0.01103923,90586.0,90583.0,0.0469214]
[1767482983306,0.01103923,90586.0,90583.0,0.04687716]
[1767482983518,0.01103923,90586.0,90583.0,0.05791675]
[1767482984163,0.01103923,90586.0,90583.0,0.04687716]
[1767482984939,0.01103923,90586.0,90583.0,0.04683292]
[1767482985643,0.01103923,90586.0,90583.0,0.04678868]
[1767482985943,0.01103923,90586.0,90583.0,0.05782827]
[1767482986493,0.01103923,90586.0,90583.0,0.05778286]
[1767482986737,0.06623508,90587.0,90583.0,0.05778286]
[1767482987835,0.06623508,90587.0,90583.0,0.0574841]
[1767482988042,0.01103923,90586.0,90583.0,0.04404754]
[1767482988386,0.01103923,90586.0,90583.0,0.05508713]
[1767482989501,0.01103911,90587.0,90586.0,0.000999]
[1767482989945,0.01103911,90587.0,90584.0,0.01103947]
[1767482990666,0.01103911,90587.0,90583.0,0.05508713]
[1767482991269,0.01103923,90586.0,90583.0,0.05508713]
[1767482991686,0.01103911,90587.0,90583.0,0.05508713]
[1767482991888,0.01103911,90587.0,90583.0,0.01103959]
[1767482992216,0.01103923,90586.0,90583.0,0.01099535]
[1767482992431,0.01103923,90586.0,90582.0,0.01103972]
[1767482992585,0.01103923,90586.0,90582.0,0.01020225]
[1767482992792,0.01103935,90585.0,90582.0,0.00464924]
[1767482993194,0.01103935,90585.0,90582.0,0.05165913]
[1767482993547,0.01103935,90585.0,90582.0,0.05161372]
[1767482994831,0.01103935,90585.0,90582.0,0.05147021]
[1767482996773,0.01103838,90593.0,90590.0,0.05804863]
[1767482996976,0.05518814,90600.0,90592.0,0.01094768]
[1767482997177,0.02208,90604.0,90594.0,0.01103825]
[1767482997351,0.02208,90604.0,90600.0,0.0109467]
[1767482997562,0.02208,90604.0,90600.0,0.0109013]
[1767482997714,0.01103606,90612.0,90603.0,0.000149]
[1767482997917,0.01096736,90609.0,90604.0,0.01103704]
[1767482998140,0.01103643,90609.0,90605.0,0.01103691]
[1767482998341,0.01103643,90609.0,90605.0,0.0580468]
[1767482998551,0.01103655,90608.0,90605.0,0.04700989]
[1767482998728,0.01103655,90608.0,90605.0,0.04461294]
[1767482998934,0.06621964,90608.0,90605.0,0.04461294]
[1767482999139,0.06621964,90608.0,90605.0,0.04256301]
[1767482999303,0.01103679,90606.0,90601.0,0.05804729]
[1767482999739,0.01103679,90606.0,90603.0,0.04700989]
[1767483000612,0.01103679,90606.0,90602.0,0.01103728]
[1767483001363,0.01103825,90594.0,90587.0,0.01103911]
[1767483001718,0.01103874,90590.0,90585.0,0.01103935]
[1767483001920,0.01103947,90584.0,90579.0,0.01104008]
[1767483002272,0.01103947,90584.0,90576.0,0.01104045]
[1767483002273,0.01103947,90584.0,90578.0,0.0110402]
[1767483002475,0.01103923,90586.0,90582.0,0.01093972]
[1767483002899,0.01103935,90585.0,90581.0,0.01103984]
[1767483003098,0.01103923,90586.0,90582.0,0.01103972]
[1767483003312,0.03311898,90588.0,90586.0,0.000999]
[1767483003774,0.08831415,90588.0,90586.0,0.000999]
[1767483003918,0.01103911,90587.0,90582.0,0.01103972]
[1767483004322,0.01103923,90586.0,90582.0,0.01103972]
[1767483005015,0.01103911,90587.0,90583.0,0.01103959]
[1767483005193,0.01103923,90586.0,90582.0,0.01103972]
[1767483006012,0.01103911,90587.0,90583.0,0.01103959]
[1767483006345,0.03311898,90588.0,90584.0,0.01103947]
[1767483006544,0.04656814,90587.0,90582.0,0.03831711]
[1767483006783,0.04656814,90587.0,90582.0,0.01756074]
[1767483007095,0.05760725,90587.0,90583.0,0.01103959]
[1767483008967,0.05760725,90587.0,90583.0,0.01099419]
[1767483009711,0.01103923,90586.0,90582.0,0.01103972]
[1767483010254,0.01103911,90587.0,90583.0,0.01103959]
[1767483010505,0.01103935,90585.0,90581.0,0.01103984]
[1767483010708,0.01103947,90584.0,90580.0,0.01103996]
[1767483010869,0.01103923,90586.0,90581.0,0.01103984]
[1767483011120,0.01103923,90586.0,90582.0,0.01103972]
[1767483011518,0.01103935,90585.0,90580.0,0.01103996]
[1767483011701,0.01103923,90586.0,90581.0,0.01103984]
[1767483012282,0.01103935,90585.0,90581.0,0.01103984]
[1767483013290,0.01103923,90586.0,90581.0,0.05871204]
[1767483013412,0.01103911,90587.0,90583.0,0.01103959]
[1767483013614,0.01103923,90586.0,90582.0,0.01103972]
[1767483013812,0.01103911,90587.0,90582.0,0.01103972]
[1767483014244,0.01103923,90586.0,90582.0,0.01103972]
[1767483014439,0.01103923,90586.0,90581.0,0.05871204]
[1767483014440,0.01103935,90585.0,90581.0,0.05871204]
[1767483014641,0.01103911,90587.0,90581.0,0.05327804]
[1767483014874,0.03311898,90588.0,90583.0,0.01103959]
[1767483015071,0.03311898,90588.0,90581.0,0.09739041]
[1767483015782,0.03311898,90588.0,90580.0,0.01103996]
[1767483015783,0.01103923,90586.0,90583.0,0.0476722]
[1767483016170,0.06623586,90586.0,90583.0,0.0476722]
[1767483016353,0.01103923,90586.0,90583.0,0.0476722]
[1767483016530,0.01103911,90587.0,90583.0,0.0476722]
[1767483016734,0.01103923,90586.0,90583.0,0.0476722]
[1767483017342,0.02208,90588.0,90586.0,0.000999]
[1767483017588,0.01103911,90587.0,90586.0,0.000999]
[1767483018110,0.01103911,90587.0,90583.0,0.05871179]
[1767483018819,0.01103911,90587.0,90584.0,0.01103947]
[1767483019031,0.03311898,90588.0,90585.0,0.04312899]
[1767483019988,0.08831433,90588.0,90585.0,0.04312899]
[1767483020369,0.03311898,90588.0,90585.0,0.04312899]
[1767483020684,0.08831438,90588.0,90585.0,0.04312899]
[1767483020890,0.01103911,90587.0,90582.0,0.05871192]
[1767483021090,0.01103911,90587.0,90583.0,0.01103959]
[1767483021736,0.01103935,90585.0,90581.0,0.05871204]
[1767483022092,0.01103947,90584.0,90581.0,0.0476722]
[1767483023950,0.01103947,90584.0,90580.0,0.01103996]
[1767483024303,0.01103947,90584.0,90580.0,0.05871216]
[1767483024504,0.06623669,90585.0,90580.0,0.05871216]
[1767483024905,0.01103959,90583.0,90580.0,0.0476722]
[1767483025108,0.01103959,90583.0,90573.0,0.02208]
[1767483025109,0.0110402,90578.0,90574.0,0.0476722]
[1767483026052,0.01103996,90580.0,90578.0,0.0476722]
[1767483026248,0.01103996,90580.0,90578.0,0.04762798]
[1767483027663,0.01104008,90579.0,90576.0,0.0476722]
[1767483028693,0.05519892,90582.0,90576.0,0.0476722]
[1767483028694,0.00938447,90583.0,90581.0,0.0476722]
[1767483028896,0.05518922,90598.0,90591.0,0.06623168]
[1767483029100,0.01103752,90600.0,90591.0,0.01103862]
[1767483029730,0.01093777,90598.0,90593.0,0.06623028]
[1767483029925,0.01103752,90600.0,90595.0,0.04934696]
[1767483030208,0.01103667,90607.0,90597.0,0.06038485]
[1767483030343,0.03311704,90604.0,90601.0,0.04934696]
[1767483030547,0.06622155,90605.0,90600.0,0.01]
[1767483030753,0.06622155,90605.0,90599.0,0.01103764]
[1767483031806,0.01103704,90604.0,90600.0,0.01103752]
[1767483032008,0.01103704,90604.0,90598.0,0.06622612]
[1767483032009,1e-08,90614.0,90607.0,0.01103667]
[1767483032188,1e-08,90614.0,90613.0,0.12365511]
[1767483032999,0.01103423,90627.0,90621.0,0.01103496]
[1767483033199,0.000999,90621.0,90619.0,0.06621083]
[1767483033398,0.0110346,90624.0,90620.0,0.01103509]
[1767483033800,0.01103448,90625.0,90621.0,0.01103496]
[1767483034048,0.01103448,90625.0,90618.0,0.01103533]
[1767483034049,0.000999,90621.0,90618.0,0.01103533]
[1767483034501,0.01103484,90622.0,90618.0,0.01103533]
[1767483035152,0.02978626,90656.0,90633.0,0.0110335]
[1767483035306,0.01103156,90649.0,90640.0,0.01103265]
[1767483035510,0.01103156,90649.0,90644.0,0.01103216]
[1767483035729,0.02212,90652.0,90645.0,0.01103204]
[1767483035927,0.02212,90652.0,90646.0,0.06619155]
[1767483036274,0.02212,90652.0,90649.0,0.01103156]
[1767483036401,0.02212,90652.0,90648.0,0.01103168]
[1767483036806,0.02212,90652.0,90649.0,0.01103156]
[1767483037000,0.03325861,90652.0,90648.0,0.01103168]
[1767483037243,0.02222742,90652.0,90648.0,0.01103168]
[1767483037448,0.02222742,90652.0,90649.0,0.01103156]
[1767483037645,0.03325861,90652.0,90648.0,0.01103168]
[1767483038731,0.01103131,90651.0,90647.0,0.0110318]
[1767483038949,0.01103168,90648.0,90642.0,0.01103241]
[1767483039154,0.0110318,90647.0,90642.0,0.01103241]
[1767483039557,0.0110318,90647.0,90643.0,0.01103229]
[1767483040168,0.01103168,90648.0,90644.0,0.01103216]
[1767483040169,0.05958793,90648.0,90644.0,0.01103216]
[1767483040343,0.01103168,90648.0,90644.0,0.01103216]
[1767483040532,0.01103156,90649.0,90644.0,0.01103216]
[1767483040712,0.01103168,90648.0,90644.0,0.01103216]
[1767483040916,0.01103168,90648.0,90643.0,0.01103229]
[1767483041160,0.04855625,90659.0,90643.0,0.01103229]
[1767483041161,0.00010742,90652.0,90649.0,0.06618919]
[1767483041406,0.04855625,90665.0,90657.0,0.01103058]
[1767483041578,0.01102973,90664.0,90660.0,0.01098485]
[1767483041898,0.01138726,90665.0,90660.0,0.01098485]
[1767483041899,0.00035765,90665.0,90660.0,0.01098485]
[1767483042197,0.00035765,90665.0,90655.0,0.01103083]
[1767483042418,0.01102973,90664.0,90653.0,0.01103107]
[1767483042544,0.01102985,90663.0,90654.0,0.01103095]
[1767483042750,0.01103046,90658.0,90654.0,0.01103095]
[1767483042946,0.01003146,90658.0,90654.0,0.01103095]
[1767483043603,0.01003146,90658.0,90653.0,0.01103107]
[1767483043807,0.01103058,90657.0,90651.0,0.12365511]
[1767483043967,0.01103058,90657.0,90651.0,0.13468642]
[1767483044167,0.01103095,90654.0,90651.0,0.12365511]
[1767483044421,0.06618608,90654.0,90651.0,0.12265611]
[1767483044567,0.01103143,90650.0,90640.0,0.01103265]
[1767483044769,0.0551578,90649.0,90641.0,0.01103253]
[1767483044995,0.01103277,90639.0,90634.0,0.01103338]
[1767483045193,0.01103241,90642.0,90639.0,0.010999]
[1767483045194,0.06619506,90642.0,90639.0,0.010999]
[1767483045374,0.06619506,90642.0,90639.0,0.01]
[1767483045575,0.06619245,90645.0,90639.0,0.01]
[1767483045974,0.01103241,90642.0,90639.0,0.01]
[1767483046201,0.01103229,90643.0,90639.0,0.01]
[1767483046703,0.01103204,90645.0,90643.0,0.000999]
[1767483046917,0.05515876,90648.0,90641.0,0.01103253]
[1767483047576,0.01103192,90646.0,90641.0,0.01103253]
[1767483047802,0.01103204,90645.0,90640.0,0.01103265]
[1767483048786,0.01103204,90645.0,90641.0,0.01103253]
[1767483048977,0.01103192,90646.0,90641.0,0.01103253]
[1767483050003,0.01103168,90648.0,90643.0,0.01103229]
[1767483050190,0.01103192,90647.0,90643.0,0.01103229]
[1767483050492,0.02206372,90647.0,90642.0,0.01103241]
[1767483054003,0.01103192,90647.0,90643.0,0.01103229]
[1767483055287,0.02206372,90647.0,90643.0,0.01103229]
[1767483056497,0.02206372,90647.0,90642.0,0.01103241]
[1767483056696,0.02206372,90647.0,90643.0,0.01103229]
[1767483057533,0.02206372,90647.0,90642.0,0.01103241]
[1767483058256,0.06618759,90652.0,90647.0,0.00691055]
[1767483058480,0.01103143,90650.0,90647.0,0.00691055]
[1767483058599,0.02212,90651.0,90648.0,0.01103168]
[1767483059105,0.02212,90651.0,90648.0,0.06618963]
[1767483059302,0.02212,90651.0,90643.0,0.01103229]
[1767483059500,0.02212,90651.0,90643.0,0.05516113]
[1767483059626,0.02212,90651.0,90644.0,0.01103216]
[1767483059627,0.01103156,90649.0,90644.0,0.01103216]
[1767483059822,0.01103156,90649.0,90643.0,0.01103229]
[1767483060241,0.01176519,90649.0,90643.0,0.01103229]
[1767483060465,0.0647514,90650.0,90641.0,0.11572525]
[1767483060666,0.05515822,90649.0,90644.0,0.04953019]
[1767483060868,0.0661912,90647.0,90644.0,0.04953019]
[1767483061083,0.00308945,90644.0,90640.0,0.06056284]
[1767483061284,0.00308945,90644.0,90641.0,0.01103253]
[1767483061488,0.01103216,90644.0,90640.0,0.04953019]
[1767483061714,0.01103253,90641.0,90632.0,0.01103363]
[1767483061915,0.01103253,90641.0,90640.0,0.12365511]
[1767483062430,0.01103253,90641.0,90640.0,0.12056566]
[1767483064143,0.01103253,90641.0,90640.0,0.01316564]
[1767483064540,0.01103253,90641.0,90561.0,0.05552795]
[1767483064541,0.01103399,90629.0,90626.0,0.0001498]
[1767483064714,0.01103399,90629.0,90620.0,0.12365511]
[1767483064715,0.01103472,90623.0,90620.0,0.12365511]
[1767483064918,0.01003572,90623.0,90620.0,0.12365511]
[1767483065120,0.01103472,90623.0,90621.0,0.04953019]
[1767483065320,0.0551726,90625.0,90623.0,0.04953019]
[1767483065523,0.0110346,90624.0,90621.0,0.04953019]
[1767483065727,0.01103423,90627.0,90621.0,0.04953761]
[1767483065927,0.01103411,90628.0,90622.0,0.01103484]
[1767483066110,0.01103423,90627.0,90622.0,0.06056503]
[1767483066911,0.01103436,90626.0,90622.0,0.04953019]
[1767483067112,0.01103448,90625.0,90622.0,0.04953019]
[1767483067429,0.01103436,90626.0,90622.0,0.04953019]
[1767483067846,0.01103423,90627.0,90622.0,0.06056503]
[1767483068049,0.01103411,90628.0,90623.0,0.01103472]
[1767483068875,0.01103411,90628.0,90624.0,0.0110346]
[1767483069488,0.01103399,90629.0,90624.0,0.0110346]
[1767483069692,0.01103411,90628.0,90623.0,0.01103472]
[1767483069890,0.01103411,90628.0,90624.0,0.0110346]
[1767483070298,0.01103411,90628.0,90623.0,0.01103472]
[1767483071886,0.01103399,90629.0,90624.0,0.0110346]
[1767483073002,0.01103423,90627.0,90622.0,0.06056503]
[1767483073513,0.01103448,90625.0,90622.0,0.04953019]
[1767483073699,0.01103448,90625.0,90621.0,0.00010742]
[1767483073700,0.010999,90622.0,90621.0,0.00010742]
[1767483074233,0.01103436,90626.0,90621.0,0.01114238]
[1767483074634,0.0110346,90624.0,90621.0,0.00010742]
[1767483075164,0.0110346,90624.0,90621.0,4.2e-07]
[1767483075587,0.01103545,90617.0,90608.0,0.05016339]
[1767483075729,0.0110357,90615.0,90609.0,0.06056662]
[1767483076081,0.01103557,90616.0,90611.0,0.01103618]
[1767483076431,0.01114267,90617.0,90611.0,0.01103618]
[1767483076432,0.01114267,90617.0,90616.0,0.000107]
[1767483076835,0.01114267,90617.0,90611.0,0.01103618]
[1767483077033,0.01103557,90616.0,90612.0,0.01103606]
[1767483077380,0.01114267,90617.0,90613.0,0.01103594]
[1767483077586,0.05528464,90617.0,90610.0,0.0110363]
[1767483077886,0.000999,90613.0,90610.0,0.0110363]
[1767483078031,0.06621394,90616.0,90613.0,0.00010742]
[1767483078230,0.01103557,90616.0,90613.0,0.00010742]
[1767483079195,0.01103557,90616.0,90612.0,0.01103606]
[1767483079397,0.01103557,90616.0,90611.0,0.01103618]
[1767483079579,0.01103557,90616.0,90612.0,0.01103606]
[1767483079789,0.01103557,90616.0,90611.0,0.01103618]
[1767483080574,0.04981535,90615.0,90609.0,0.03829053]
[1767483080778,0.01103557,90616.0,90609.0,0.03829053]
[1767483080779,0.01103557,90616.0,90609.0,0.03819053]
[1767483080978,0.01103557,90616.0,90611.0,0.01103618]
[1767483081219,0.00010722,90617.0,90613.0,0.01103594]
[1767483081423,0.02208,90616.0,90613.0,0.01103594]
[1767483081623,0.01103484,90622.0,90617.0,0.04953019]
[1767483081930,0.01103484,90622.0,90616.0,0.01114299]
[1767483081931,0.02208,90621.0,90616.0,0.01114299]
[1767483082087,0.02208,90621.0,90616.0,0.01109881]
[1767483082279,0.02208,90621.0,90616.0,0.060629]
[1767483082841,0.03311496,90621.0,90616.0,0.060629]
[1767483083023,0.03311496,90621.0,90617.0,0.04953019]
[1767483083252,0.03311496,90621.0,90617.0,0.06056564]
[1767483085254,0.02201676,90621.0,90618.0,0.06056552]
[1767483085662,0.05516825,90632.0,90626.0,0.01103436]
[1767483085818,0.000999,90626.0,90624.0,0.0110346]
[1767483086017,0.03311375,90631.0,90624.0,0.0110346]
[1767483086018,0.01103399,90629.0,90624.0,0.0110346]
[1767483086222,0.01103387,90630.0,90625.0,0.01103448]
[1767483086625,0.01103411,90628.0,90624.0,0.0110346]
[1767483086853,0.01103423,90627.0,90623.0,0.06056491]
[1767483087209,0.01103411,90628.0,90623.0,0.06056491]
[1767483087621,0.01103399,90629.0,90624.0,0.0110346]
[1767483087996,0.01103387,90630.0,90624.0,0.0110346]
[1767483087997,0.01103387,90630.0,90625.0,0.01103448]
[1767483088452,0.01103399,90629.0,90625.0,0.01103448]
[1767483089308,0.01103399,90629.0,90624.0,0.0110346]
[1767483090692,0.01103387,90630.0,90625.0,0.01103448]
[1767483091148,0.01103399,90629.0,90624.0,0.0110346]
[1767483091370,0.01103387,90630.0,90566.0,0.13851666]
[1767483091371,0.01103582,90614.0,90609.0,0.01103643]
[1767483091567,0.03311594,90613.0,90608.0,0.01166975]
[1767483092228,0.02208,90613.0,90610.0,0.0110363]
[1767483092808,0.02208,90613.0,90609.0,0.06621845]
[1767483092975,0.000999,90610.0,90609.0,0.06621845]
[1767483093512,0.02208,90613.0,90610.0,0.0110363]
[1767483094986,0.02208,90613.0,90610.0,0.06621727]
[1767483095194,0.02208,90613.0,90610.0,0.06521834]
[1767483096445,0.02208,90613.0,90610.0,0.0100373]
[1767483098505,0.04699478,90612.0,90609.0,0.02625575]
[1767483098707,0.02208,90613.0,90610.0,0.0110363]
[1767483098905,0.02208,90613.0,90609.0,0.06621845]
[1767483099125,0.02208,90613.0,90610.0,0.06621734]
[1767483099882,0.02208,90613.0,90607.0,0.05518297]
[1767483100082,0.02208,90613.0,90610.0,0.0110363]
[1767483100747,0.03311594,90613.0,90608.0,0.01103655]
[1767483100914,0.0210363,90610.0,90607.0,0.00010722]
[1767483101279,0.05518262,90609.0,90607.0,0.00010722]
[1767483102836,0.0662184,90610.0,90607.0,0.00010722]
[1767483103546,0.01103655,90608.0,90601.0,0.1040255]
[1767483103714,0.01103667,90607.0,90602.0,0.01103728]
[1767483103915,0.02208,90606.0,90603.0,0.05987614]
[1767483105740,0.02208,90606.0,90603.0,0.04883898]
[1767483106082,0.02208,90606.0,90603.0,0.05987614]
[1767483109160,0.02208,90606.0,90602.0,0.01103728]
[1767483109161,0.03311679,90606.0,90602.0,0.01103728]
[1767483109513,0.03311679,90606.0,90602.0,0.05987626]
[1767483109718,0.02208,90606.0,90603.0,0.01103716]
[1767483109946,0.02208,90606.0,90604.0,0.0551852]
[1767483110098,0.021081,90606.0,90604.0,0.10402418]
[1767483110296,0.00010724,90608.0,90605.0,0.04883898]
[1767483110500,0.02208,90607.0,90605.0,0.05987589]
[1767483115562,0.02208,90607.0,90604.0,0.04504952]
[1767483115958,0.02208,90607.0,90605.0,0.01103691]
[1767483116521,0.02208,90607.0,90605.0,0.05987589]
[1767483118228,0.02208,90607.0,90605.0,0.04883898]
[1767483120457,0.02208,90607.0,90604.0,0.06622182]
[1767483120663,0.00010724,90608.0,90607.0,0.0471039]
[1767483120832,0.02218724,90608.0,90607.0,0.0471039]
[1767483123566,0.02218724,90608.0,90605.0,0.01103691]
[1767483123715,0.02218724,90608.0,90605.0,0.05814081]
[1767483129739,0.02218724,90608.0,90605.0,0.11332486]
[1767483130483,0.02218724,90608.0,90605.0,0.05814081]
[1767483130886,0.07737002,90608.0,90605.0,0.0471039]
[1767483131107,0.03322379,90608.0,90605.0,0.0471039]
[1767483132007,0.06630278,90608.0,90602.0,0.01103728]
[1767483132237,0.03322379,90608.0,90603.0,0.05518543]
[1767483132815,0.03322379,90608.0,90604.0,0.01103704]
[1767483133273,0.01103704,90604.0,90599.0,0.01103764]
[1767483133582,0.01103704,90604.0,90597.0,0.01103789]
[1767483133710,0.01103704,90604.0,90598.0,0.01103777]
[1767483133912,0.01103716,90603.0,90598.0,0.01103777]
[1767483134099,0.01103704,90604.0,90599.0,0.01103764]
[1767483134301,0.01103704,90604.0,90599.0,0.06622574]
[1767483134602,0.01103716,90603.0,90599.0,0.01103764]
[1767483134972,0.01103691,90605.0,90600.0,0.01103752]
[1767483135174,0.0662228,90604.0,90597.0,0.01103789]
[1767483135505,0.01103716,90603.0,90599.0,0.01103764]
[1767483136215,0.01103728,90602.0,90598.0,0.01103777]
[1767483136399,0.01103704,90604.0,90600.0,0.01103752]
[1767483136756,0.01103691,90605.0,90600.0,0.01103752]
[1767483137297,0.01103679,90606.0,90602.0,0.01103728]
[1767483137648,0.01103679,90606.0,90602.0,0.05814118]
[1767483138805,0.01103667,90607.0,90602.0,0.05814118]
[1767483139649,0.01103679,90606.0,90602.0,0.05814118]
[1767483140179,0.01103667,90607.0,90604.0,0.0471039]
[1767483141510,0.02218724,90608.0,90607.0,0.0481029]
[1767483141730,0.01103606,90612.0,90607.0,0.0481029]
[1767483141731,0.01103618,90611.0,90608.0,0.04700389]
[1767483141947,0.01103643,90609.0,90607.0,0.01]
[1767483142165,0.01103643,90609.0,90606.0,0.0471039]
[1767483142635,0.02208,90608.0,90606.0,0.0471039]
[1767483143555,0.021081,90608.0,90607.0,0.05518337]
[1767483143731,0.021081,90608.0,90605.0,0.01103691]
[1767483143732,0.01101198,90608.0,90606.0,0.0471039]
[1767483144370,0.01094296,90608.0,90606.0,0.0471039]
[1767483144942,0.01085458,90608.0,90605.0,0.01103691]
[1767483145158,0.01085458,90608.0,90606.0,0.0471039]
[1767483147607,0.01085458,90608.0,90606.0,0.04681671]
[1767483148005,0.02725355,90611.0,90608.0,0.0471039]
[1767483148211,0.02208,90610.0,90608.0,0.0471039]
[1767483149590,0.02208,90610.0,90605.0,0.05814081]
[1767483149790,0.0331163,90610.0,90606.0,0.05814069]
[1767483151342,0.01103643,90609.0,90606.0,0.0471039]
[1767483151553,0.01094805,90609.0,90606.0,0.0471039]
[1767483151754,0.06613064,90609.0,90606.0,0.0471039]
[1767483153532,0.06613064,90609.0,90604.0,0.05723366]
[1767483154165,0.01103655,90608.0,90604.0,0.05723366]
[1767483156732,0.01103655,90608.0,90604.0,0.01103704]
[1767483157058,0.01103655,90608.0,90603.0,0.06622291]
[1767483157312,0.01103655,90608.0,90603.0,0.01622291]
[1767483157527,0.01103655,90608.0,90601.0,0.0551868]
[1767483157890,0.02824205,90608.0,90604.0,0.01103704]
[1767483158538,0.02824205,90608.0,90604.0,0.01003804]
[1767483159131,0.0172055,90607.0,90604.0,0.01003804]
[1767483159634,0.01103655,90608.0,90604.0,0.01003804]
[1767483161272,0.0331163,90610.0,90606.0,0.01103679]
[1767483161667,0.01103643,90609.0,90604.0,0.06522264]
[1767483161825,0.01103643,90609.0,90605.0,0.01103691]
[1767483162063,0.01103643,90609.0,90605.0,0.05723353]
[1767483162828,0.0331163,90610.0,90605.0,0.05723353]
[1767483163029,0.0331163,90610.0,90607.0,0.04619662]
[1767483163301,0.0321173,90610.0,90607.0,0.04590943]
[1767483172983,0.02725388,90611.0,90606.0,0.01103679]
[1767483173243,0.0110346,90624.0,90619.0,0.01103521]
[1767483173414,0.01103375,90631.0,90623.0,0.01098935]
[1767483173636,0.02208,90630.0,90627.0,0.06620495]
[1767483173834,0.02208,90630.0,90628.0,0.01003511]
[1767483174187,0.01103399,90629.0,90625.0,0.04619662]
[1767483174413,0.01,90628.0,90625.0,0.04619662]